[Event "Early-Titled-Tuesday-Blitz-January-16-2024"]
[Site "Chess.com"]
[Date "2024.01.16"]
[Round "6"]
[White "TigrVShlyape"]
[Black "NewBornNow"]
[Result "1-0"]
[WhiteElo "2943"]
[BlackElo "2780"]
[TimeControl "180+1"]
[EndTime "9:09:16 PST"]
[Termination "TigrVShlyape won by resignation"]

1. d4 {[%clk 0:02:50.8]} 1... Nf6 {[%clk 0:02:59.1]} 2. Bf4 {[%clk 0:02:48.2]}
2... d5 {[%clk 0:02:50.7]} 3. e3 {[%clk 0:02:47.9]} 3... a6 {[%clk 0:02:50.8]}
4. Nf3 {[%clk 0:02:46.1]} 4... e6 {[%clk 0:02:49.9]} 5. c3 {[%clk 0:02:44.5]}
5... c5 {[%clk 0:02:46.2]} 6. Nbd2 {[%clk 0:02:43.4]} 6... Nc6 {[%clk
0:02:46.3]} 7. Bd3 {[%clk 0:02:41.9]} 7... Bd6 {[%clk 0:02:43.6]} 8. Bg3 {[%clk
0:02:38.8]} 8... Bxg3 {[%clk 0:02:42.8]} 9. hxg3 {[%clk 0:02:38.3]} 9... Qe7
{[%clk 0:02:43]} 10. Ne5 {[%clk 0:02:35.6]} 10... Nxe5 {[%clk 0:02:38.8]} 11.
dxe5 {[%clk 0:02:35.2]} 11... Nd7 {[%clk 0:02:38.8]} 12. f4 {[%clk 0:02:35]}
12... b6 {[%clk 0:02:29.4]} 13. Qg4 {[%clk 0:02:28.7]} 13... g6 {[%clk
0:02:27.2]} 14. Rh6 {[%clk 0:02:26.7]} 14... Bb7 {[%clk 0:02:25.6]} 15. O-O-O
{[%clk 0:02:24.5]} 15... O-O-O {[%clk 0:02:18.2]} 16. Nf3 {[%clk 0:02:22.9]}
16... b5 {[%clk 0:01:53.7]} 17. Qg5 {[%clk 0:02:20.7]} 17... f6 {[%clk
0:01:50.7]} 18. exf6 {[%clk 0:02:20]} 18... Qxf6 {[%clk 0:01:48.9]} 19. Rdh1
{[%clk 0:02:12.5]} 19... Qg7 {[%clk 0:01:42.2]} 20. Qh4 {[%clk 0:01:48.9]} 20...
e5 {[%clk 0:01:19.6]} 21. Bxg6 {[%clk 0:01:26.3]} 21... exf4 {[%clk 0:01:18]}
22. gxf4 {[%clk 0:01:21.8]} 22... Rhf8 {[%clk 0:01:03.1]} 23. Bxh7 {[%clk
0:01:13.2]} 23... Qxg2 {[%clk 0:01:02.6]} 24. Qh3 {[%clk 0:00:57.5]} 24... Qe2
{[%clk 0:00:52.2]} 25. Re1 {[%clk 0:00:52.7]} 25... Qc4 {[%clk 0:00:49.7]} 26.
Kb1 {[%clk 0:00:46.8]} 26... d4 {[%clk 0:00:49.7]} 27. Ne5 {[%clk 0:00:46.3]}
27... Qd5 {[%clk 0:00:42.9]} 28. e4 {[%clk 0:00:44.2]} 1-0

[Event "Early-Titled-Tuesday-Blitz-January-16-2024"]
[Site "Chess.com"]
[Date "2024.01.16"]
[Round "6"]
[White "temiksmozg"]
[Black "campochess"]
[Result "0-1"]
[WhiteElo "2621"]
[BlackElo "2155"]
[TimeControl "180+1"]
[EndTime "9:09:21 PST"]
[Termination "campochess won by resignation"]

1. e4 {[%clk 0:03:00.9]} 1... c5 {[%clk 0:02:59.4]} 2. Nf3 {[%clk 0:03:00]} 2...
Nc6 {[%clk 0:02:59.2]} 3. d4 {[%clk 0:02:59.7]} 3... cxd4 {[%clk 0:02:58.9]} 4.
Nxd4 {[%clk 0:03:00.4]} 4... e5 {[%clk 0:02:58.7]} 5. Nb5 {[%clk 0:02:58.7]}
5... a6 {[%clk 0:02:58.9]} 6. Nd6+ {[%clk 0:02:58.4]} 6... Bxd6 {[%clk
0:02:58.6]} 7. Qxd6 {[%clk 0:02:59.3]} 7... Qe7 {[%clk 0:02:58.8]} 8. Qxe7+
{[%clk 0:02:54.8]} 8... Ngxe7 {[%clk 0:02:57.9]} 9. c3 {[%clk 0:02:54.4]} 9...
d5 {[%clk 0:02:56.7]} 10. exd5 {[%clk 0:02:54.6]} 10... Nxd5 {[%clk 0:02:55.5]}
11. Nd2 {[%clk 0:02:53.1]} 11... O-O {[%clk 0:02:54.5]} 12. Be2 {[%clk
0:02:50.4]} 12... Nf4 {[%clk 0:02:52.7]} 13. Bf3 {[%clk 0:02:50.1]} 13... Bf5
{[%clk 0:02:38.1]} 14. O-O {[%clk 0:02:40.4]} 14... Rad8 {[%clk 0:02:26.3]} 15.
g3 {[%clk 0:02:25.2]} 15... Nh3+ {[%clk 0:02:14.1]} 16. Kg2 {[%clk 0:02:17.7]}
16... Ng5 {[%clk 0:02:14]} 17. Bxc6 {[%clk 0:02:11.2]} 17... Bh3+ {[%clk
0:02:12.9]} 18. Kg1 {[%clk 0:02:08.1]} 18... Bxf1 {[%clk 0:02:09.1]} 19. Bxb7
{[%clk 0:02:05.1]} 19... Bh3 {[%clk 0:01:57.5]} 20. f4 {[%clk 0:01:42.1]} 20...
exf4 {[%clk 0:01:52.1]} 21. gxf4 {[%clk 0:01:43]} 21... Ne6 {[%clk 0:01:51.9]}
22. Kf2 {[%clk 0:01:35.8]} 22... Nc5 {[%clk 0:01:46.7]} 23. Bf3 {[%clk
0:00:53.8]} 23... Nd3+ {[%clk 0:01:41.2]} 24. Kg3 {[%clk 0:00:54]} 24... Bf5
{[%clk 0:01:23.7]} 25. Nb3 {[%clk 0:00:51.5]} 25... Rd6 {[%clk 0:01:14.7]} 26.
h4 {[%clk 0:00:33.3]} 26... Rg6+ {[%clk 0:01:12.8]} 27. Kh2 {[%clk 0:00:33.4]}
27... Ne1 {[%clk 0:01:06.7]} 28. Bd5 {[%clk 0:00:28.5]} 28... Rd8 {[%clk
0:01:03.9]} 29. c4 {[%clk 0:00:27.8]} 29... Rxd5 {[%clk 0:01:02.3]} 30. cxd5
{[%clk 0:00:28.7]} 30... Nf3+ {[%clk 0:01:01.5]} 0-1

[Event "Early-Titled-Tuesday-Blitz-January-16-2024"]
[Site "Chess.com"]
[Date "2024.01.16"]
[Round "6"]
[White "FairChess_on_YouTube"]
[Black "forevery0ung"]
[Result "1-0"]
[WhiteElo "3091"]
[BlackElo "2849"]
[TimeControl "180+1"]
[EndTime "9:09:26 PST"]
[Termination "FairChess_on_YouTube won on time"]

1. Nf3 {[%clk 0:03:00.9]} 1... d5 {[%clk 0:02:59.6]} 2. d4 {[%clk 0:02:57.2]}
2... Nf6 {[%clk 0:02:59]} 3. c4 {[%clk 0:02:57.8]} 3... e6 {[%clk 0:02:59.4]} 4.
Bg5 {[%clk 0:02:56.6]} 4... Nbd7 {[%clk 0:02:56.6]} 5. e3 {[%clk 0:02:56.2]}
5... a6 {[%clk 0:02:50.2]} 6. cxd5 {[%clk 0:02:52.9]} 6... exd5 {[%clk
0:02:48.5]} 7. Nc3 {[%clk 0:02:53.2]} 7... h6 {[%clk 0:02:45.7]} 8. Bh4 {[%clk
0:02:53.1]} 8... Bb4 {[%clk 0:02:16.8]} 9. Bd3 {[%clk 0:02:51.9]} 9... c5 {[%clk
0:02:06.1]} 10. O-O {[%clk 0:02:51.1]} 10... Bxc3 {[%clk 0:01:55.9]} 11. bxc3
{[%clk 0:02:50.9]} 11... c4 {[%clk 0:01:55.9]} 12. Bc2 {[%clk 0:02:49.1]} 12...
O-O {[%clk 0:01:56.2]} 13. Nd2 {[%clk 0:02:35.9]} 13... Qa5 {[%clk 0:01:52]} 14.
Qc1 {[%clk 0:02:35.1]} 14... Re8 {[%clk 0:01:49]} 15. a4 {[%clk 0:02:32.6]}
15... Re6 {[%clk 0:01:15.4]} 16. f3 {[%clk 0:02:27]} 16... Kh8 {[%clk
0:01:01.8]} 17. Bb1 {[%clk 0:01:59.3]} 17... Nb6 {[%clk 0:00:33.7]} 18. e4
{[%clk 0:01:53.9]} 18... Bd7 {[%clk 0:00:30.5]} 19. e5 {[%clk 0:01:46.9]} 19...
Ng8 {[%clk 0:00:31]} 20. f4 {[%clk 0:01:43.8]} 20... Ree8 {[%clk 0:00:27.8]} 21.
f5 {[%clk 0:01:42.6]} 21... Nxa4 {[%clk 0:00:26.5]} 22. Rf3 {[%clk 0:01:37.2]}
22... b5 {[%clk 0:00:24.1]} 23. f6 {[%clk 0:01:32.2]} 23... Qb6 {[%clk
0:00:15.2]} 24. fxg7+ {[%clk 0:01:18.2]} 24... Kxg7 {[%clk 0:00:16.1]} 25. Nf1
{[%clk 0:01:18]} 25... Bg4 {[%clk 0:00:04.1]} 26. Rf6 {[%clk 0:01:11.7]} 26...
h5 {[%clk 0:00:02]} 27. Rxb6 {[%clk 0:01:08]} 1-0

[Event "Early-Titled-Tuesday-Blitz-January-16-2024"]
[Site "Chess.com"]
[Date "2024.01.16"]
[Round "6"]
[White "ylr5000"]
[Black "dropstoneDP"]
[Result "0-1"]
[WhiteElo "2458"]
[BlackElo "3026"]
[TimeControl "180+1"]
[EndTime "9:09:26 PST"]
[Termination "dropstoneDP won by resignation"]

1. d4 {[%clk 0:02:54.2]} 1... d5 {[%clk 0:02:57.5]} 2. c4 {[%clk 0:02:54.6]}
2... dxc4 {[%clk 0:02:58.4]} 3. e3 {[%clk 0:02:54.7]} 3... Nf6 {[%clk
0:02:56.9]} 4. Bxc4 {[%clk 0:02:55.3]} 4... e6 {[%clk 0:02:57.3]} 5. Nf3 {[%clk
0:02:55.6]} 5... c5 {[%clk 0:02:57.6]} 6. O-O {[%clk 0:02:55.7]} 6... Nc6 {[%clk
0:02:57.1]} 7. Nc3 {[%clk 0:02:54.5]} 7... a6 {[%clk 0:02:56.7]} 8. a4 {[%clk
0:02:54.6]} 8... cxd4 {[%clk 0:02:56.6]} 9. exd4 {[%clk 0:02:55.5]} 9... Be7
{[%clk 0:02:57.2]} 10. Re1 {[%clk 0:02:55.3]} 10... O-O {[%clk 0:02:57.5]} 11.
Be3 {[%clk 0:02:45.1]} 11... Nd5 {[%clk 0:02:55.3]} 12. Rc1 {[%clk 0:02:43.9]}
12... Nxe3 {[%clk 0:02:54.5]} 13. Rxe3 {[%clk 0:02:36.3]} 13... Bf6 {[%clk
0:02:55]} 14. Rd3 {[%clk 0:02:32.3]} 14... Nb4 {[%clk 0:02:50.7]} 15. Rd2 {[%clk
0:02:32.4]} 15... Bd7 {[%clk 0:02:50.5]} 16. Qb3 {[%clk 0:02:22.5]} 16... Qb6
{[%clk 0:02:07.8]} 17. Ne4 {[%clk 0:02:21.1]} 17... Bc6 {[%clk 0:00:58.8]} 18.
Nxf6+ {[%clk 0:02:18.9]} 18... gxf6 {[%clk 0:00:59.7]} 19. Qe3 {[%clk
0:01:51.9]} 19... Qa5 {[%clk 0:00:58.3]} 20. Ne5 {[%clk 0:01:34]} 20... Nd5
{[%clk 0:00:24.6]} 21. Nxc6 {[%clk 0:01:21.9]} 21... bxc6 {[%clk 0:00:24]} 22.
Qh6 {[%clk 0:01:22.8]} 22... Ne7 {[%clk 0:00:10.7]} 23. Qxf6 {[%clk 0:01:15.4]}
23... Qxd2 {[%clk 0:00:09.5]} 24. Rc3 {[%clk 0:01:13.4]} 24... Ng6 {[%clk
0:00:08.3]} 25. Rg3 {[%clk 0:01:10.3]} 25... Rad8 {[%clk 0:00:07.9]} 26. h4
{[%clk 0:01:06.7]} 26... Qxd4 {[%clk 0:00:07.2]} 0-1

[Event "Early-Titled-Tuesday-Blitz-January-16-2024"]
[Site "Chess.com"]
[Date "2024.01.16"]
[Round "6"]
[White "bitter-cikolata"]
[Black "cycygogne"]
[Result "1-0"]
[WhiteElo "2552"]
[BlackElo "2301"]
[TimeControl "180+1"]
[EndTime "9:09:27 PST"]
[Termination "bitter-cikolata won by resignation"]

1. Nf3 {[%clk 0:03:00.9]} 1... c5 {[%clk 0:02:58.7]} 2. e3 {[%clk 0:03:00.9]}
2... Nc6 {[%clk 0:02:58.6]} 3. b3 {[%clk 0:03:01.3]} 3... g6 {[%clk 0:02:59]} 4.
Bb2 {[%clk 0:03:01.2]} 4... Nf6 {[%clk 0:02:59.3]} 5. Bxf6 {[%clk 0:03:01.7]}
5... exf6 {[%clk 0:02:59.5]} 6. c4 {[%clk 0:03:02.4]} 6... d5 {[%clk 0:02:55.9]}
7. cxd5 {[%clk 0:03:02.4]} 7... Qxd5 {[%clk 0:02:55.9]} 8. Nc3 {[%clk
0:03:02.9]} 8... Qd8 {[%clk 0:02:54.8]} 9. Be2 {[%clk 0:02:59.8]} 9... Bg7
{[%clk 0:02:52.7]} 10. O-O {[%clk 0:03:00.4]} 10... O-O {[%clk 0:02:50.3]} 11.
Rc1 {[%clk 0:03:00.3]} 11... b6 {[%clk 0:02:48.1]} 12. d4 {[%clk 0:03:00.4]}
12... cxd4 {[%clk 0:02:44.9]} 13. Nxd4 {[%clk 0:03:00.2]} 13... Nxd4 {[%clk
0:02:44.7]} 14. exd4 {[%clk 0:02:58.3]} 14... Bb7 {[%clk 0:02:41.2]} 15. d5
{[%clk 0:02:55.9]} 15... f5 {[%clk 0:02:41]} 16. Bf3 {[%clk 0:02:55.2]} 16...
Rc8 {[%clk 0:02:37.5]} 17. Qd2 {[%clk 0:02:54.6]} 17... Qh4 {[%clk 0:02:25.1]}
18. Qd3 {[%clk 0:01:48.7]} 18... Rfd8 {[%clk 0:02:17.2]} 19. Rfd1 {[%clk
0:01:46.4]} 19... Be5 {[%clk 0:02:03.1]} 20. g3 {[%clk 0:01:44.6]} 20... Qf6
{[%clk 0:02:03.1]} 21. Nb5 {[%clk 0:01:36.4]} 21... a6 {[%clk 0:01:54.7]} 22.
Na3 {[%clk 0:00:42.2]} 22... Rxc1 {[%clk 0:01:53.7]} 23. Rxc1 {[%clk 0:00:42.1]}
23... Bb2 {[%clk 0:01:53.6]} 24. Rc7 {[%clk 0:00:42.7]} 24... Bxd5 {[%clk
0:01:28.7]} 25. Bxd5 {[%clk 0:00:43.6]} 25... Bxa3 {[%clk 0:01:29.1]} 26. Bxf7+
{[%clk 0:00:23.5]} 26... Kh8 {[%clk 0:01:28.3]} 27. Qxa6 {[%clk 0:00:14.6]}
27... Bc5 {[%clk 0:01:26.8]} 28. Qe2 {[%clk 0:00:13.7]} 28... Qd6 {[%clk
0:01:19.9]} 29. Rb7 {[%clk 0:00:09.7]} 29... Qc6 {[%clk 0:01:15]} 30. Ra7 {[%clk
0:00:07.8]} 30... b5 {[%clk 0:01:15.3]} 31. Qe5+ {[%clk 0:00:05.5]} 1-0

[Event "Early-Titled-Tuesday-Blitz-January-16-2024"]
[Site "Chess.com"]
[Date "2024.01.16"]
[Round "6"]
[White "CaspiIsrael"]
[Black "GodDMuhammad"]
[Result "1-0"]
[WhiteElo "2644"]
[BlackElo "2380"]
[TimeControl "180+1"]
[EndTime "9:09:31 PST"]
[Termination "CaspiIsrael won by resignation"]

1. e4 {[%clk 0:03:00.9]} 1... e5 {[%clk 0:02:58.9]} 2. Nf3 {[%clk 0:03:00.3]}
2... f5 {[%clk 0:02:58.7]} 3. Nxe5 {[%clk 0:02:59.3]} 3... Qf6 {[%clk
0:02:56.1]} 4. d4 {[%clk 0:02:58.7]} 4... d6 {[%clk 0:02:55.6]} 5. Nc4 {[%clk
0:02:58.3]} 5... fxe4 {[%clk 0:02:56]} 6. Nc3 {[%clk 0:02:58.9]} 6... Qg6 {[%clk
0:02:56]} 7. Ne3 {[%clk 0:02:46.1]} 7... c6 {[%clk 0:02:53]} 8. d5 {[%clk
0:02:45.4]} 8... Nf6 {[%clk 0:02:53.5]} 9. Bc4 {[%clk 0:02:39.7]} 9... Be7
{[%clk 0:02:48.3]} 10. a4 {[%clk 0:02:39.4]} 10... Nbd7 {[%clk 0:02:46]} 11. O-O
{[%clk 0:02:33.9]} 11... Ne5 {[%clk 0:02:45.9]} 12. Bb3 {[%clk 0:02:34]} 12...
c5 {[%clk 0:02:40.8]} 13. Kh1 {[%clk 0:02:29.1]} 13... O-O {[%clk 0:02:39.4]}
14. Ne2 {[%clk 0:02:19.8]} 14... Nfg4 {[%clk 0:02:33.7]} 15. Nxg4 {[%clk
0:02:18.3]} 15... Nxg4 {[%clk 0:02:33.6]} 16. Nf4 {[%clk 0:02:17.9]} 16... Qh6
{[%clk 0:02:25.4]} 17. h3 {[%clk 0:02:18]} 17... Bg5 {[%clk 0:02:17]} 18. Ne6
{[%clk 0:02:10.8]} 18... Bxe6 {[%clk 0:02:02.8]} 19. dxe6 {[%clk 0:02:00.4]}
19... Nxf2+ {[%clk 0:01:40]} 20. Kg1 {[%clk 0:01:48.9]} 20... e3 {[%clk
0:01:15.5]} 21. e7+ {[%clk 0:01:47.5]} 21... Rf7 {[%clk 0:01:16]} 22. Bxf7+
{[%clk 0:01:25.5]} 22... Kxf7 {[%clk 0:01:16.9]} 23. Qd5+ {[%clk 0:01:25.8]}
23... Kg6 {[%clk 0:00:39.4]} 24. Qe6+ {[%clk 0:01:19.9]} 24... Kh5 {[%clk
0:00:32.8]} 25. e8=Q+ {[%clk 0:01:19.3]} 25... Rxe8 {[%clk 0:00:31.2]} 26. Qxe8+
{[%clk 0:01:20.2]} 26... g6 {[%clk 0:00:30.7]} 27. Ra3 {[%clk 0:01:14.5]} 27...
Bf4 {[%clk 0:00:24.7]} 28. Rxe3 {[%clk 0:01:02.1]} 28... Bxe3 {[%clk 0:00:12.1]}
29. Bxe3 {[%clk 0:01:01.3]} 29... Nxh3+ {[%clk 0:00:12.1]} 30. gxh3 {[%clk
0:01:00.4]} 30... Qg7 {[%clk 0:00:12.5]} 31. Qe6 {[%clk 0:00:55]} 1-0

[Event "Early-Titled-Tuesday-Blitz-January-16-2024"]
[Site "Chess.com"]
[Date "2024.01.16"]
[Round "6"]
[White "blitzking1729"]
[Black "lilleper1"]
[Result "1-0"]
[WhiteElo "2697"]
[BlackElo "2921"]
[TimeControl "180+1"]
[EndTime "9:09:36 PST"]
[Termination "blitzking1729 won by resignation"]

1. d4 {[%clk 0:03:00.9]} 1... Nf6 {[%clk 0:02:59.6]} 2. Bg5 {[%clk 0:02:58.7]}
2... c5 {[%clk 0:02:56.9]} 3. Nc3 {[%clk 0:02:58.1]} 3... cxd4 {[%clk
0:02:56.4]} 4. Qxd4 {[%clk 0:02:58]} 4... Nc6 {[%clk 0:02:56.3]} 5. Qh4 {[%clk
0:02:57.7]} 5... e6 {[%clk 0:02:44.4]} 6. O-O-O {[%clk 0:02:50.9]} 6... Be7
{[%clk 0:02:43.7]} 7. e4 {[%clk 0:02:50.8]} 7... h6 {[%clk 0:02:42]} 8. f4
{[%clk 0:02:48.8]} 8... O-O {[%clk 0:02:37.9]} 9. Bxf6 {[%clk 0:02:40.5]} 9...
Bxf6 {[%clk 0:02:37.7]} 10. Qg3 {[%clk 0:02:41]} 10... Qa5 {[%clk 0:02:22.6]}
11. e5 {[%clk 0:02:40.2]} 11... Be7 {[%clk 0:02:22.9]} 12. Kb1 {[%clk
0:02:33.2]} 12... Rd8 {[%clk 0:02:14.3]} 13. Ne4 {[%clk 0:02:23.5]} 13... b6
{[%clk 0:02:12]} 14. Nf3 {[%clk 0:02:18.3]} 14... Bb7 {[%clk 0:02:09.8]} 15.
Nf6+ {[%clk 0:02:18]} 15... Kh8 {[%clk 0:01:30.2]} 16. Ng5 {[%clk 0:01:44.2]}
16... Rf8 {[%clk 0:01:27.1]} 17. Nxd7 {[%clk 0:01:32.6]} 17... hxg5 {[%clk
0:01:23]} 18. Qh3+ {[%clk 0:01:31.9]} 18... Kg8 {[%clk 0:01:20.8]} 19. Bd3
{[%clk 0:01:29.6]} 19... f5 {[%clk 0:00:34.3]} 20. exf6 {[%clk 0:01:20.1]} 20...
Rxf6 {[%clk 0:00:34.6]} 21. Nxf6+ {[%clk 0:00:59.1]} 21... Bxf6 {[%clk
0:00:35.5]} 22. Qxe6+ {[%clk 0:00:55.2]} 22... Kf8 {[%clk 0:00:27.7]} 23. Bg6
{[%clk 0:00:26.5]} 1-0

[Event "Early-Titled-Tuesday-Blitz-January-16-2024"]
[Site "Chess.com"]
[Date "2024.01.16"]
[Round "6"]
[White "GalaxyRoman"]
[Black "Oleksandr_Bortnyk"]
[Result "0-1"]
[WhiteElo "2875"]
[BlackElo "3101"]
[TimeControl "180+1"]
[EndTime "9:09:37 PST"]
[Termination "Oleksandr_Bortnyk won by resignation"]

1. d4 {[%clk 0:03:00.9]} 1... Nf6 {[%clk 0:02:58.8]} 2. c4 {[%clk 0:03:00]} 2...
b6 {[%clk 0:02:59.2]} 3. Nc3 {[%clk 0:02:59.1]} 3... Bb7 {[%clk 0:02:59.9]} 4.
Bg5 {[%clk 0:02:51.7]} 4... e6 {[%clk 0:02:51.8]} 5. f3 {[%clk 0:02:44.1]} 5...
h6 {[%clk 0:02:44.3]} 6. Bh4 {[%clk 0:02:36.4]} 6... d5 {[%clk 0:02:44.7]} 7.
cxd5 {[%clk 0:02:32.1]} 7... exd5 {[%clk 0:02:45.6]} 8. e3 {[%clk 0:02:32]} 8...
Bd6 {[%clk 0:02:42.1]} 9. Qa4+ {[%clk 0:02:24.1]} 9... c6 {[%clk 0:02:41.2]} 10.
Nxd5 {[%clk 0:02:07.9]} 10... g5 {[%clk 0:02:29.2]} 11. Nxf6+ {[%clk 0:02:04.3]}
11... Qxf6 {[%clk 0:02:30.1]} 12. Bg3 {[%clk 0:01:56.6]} 12... O-O {[%clk
0:02:30.5]} 13. e4 {[%clk 0:01:37.8]} 13... b5 {[%clk 0:02:30]} 14. Qd1 {[%clk
0:01:28.8]} 14... Bb4+ {[%clk 0:02:29.4]} 15. Kf2 {[%clk 0:01:28]} 15... Rd8
{[%clk 0:02:26.1]} 16. Ne2 {[%clk 0:01:26.7]} 16... c5 {[%clk 0:02:24.7]} 17.
Be5 {[%clk 0:00:42]} 17... Qe7 {[%clk 0:02:13.5]} 18. a3 {[%clk 0:00:37.5]}
18... Ba5 {[%clk 0:02:10.1]} 19. b4 {[%clk 0:00:37.9]} 19... cxd4 {[%clk
0:02:05.7]} 20. bxa5 {[%clk 0:00:33.7]} 20... Qxe5 {[%clk 0:02:05.7]} 21. Nc1
{[%clk 0:00:33.7]} 21... d3 {[%clk 0:01:46.4]} 22. Nxd3 {[%clk 0:00:34]} 22...
Qd4+ {[%clk 0:01:46.6]} 23. Kg3 {[%clk 0:00:34.4]} 23... Nd7 {[%clk 0:01:43.9]}
24. h4 {[%clk 0:00:25.3]} 24... Ne5 {[%clk 0:01:40.9]} 25. hxg5 {[%clk
0:00:22.7]} 25... Nxd3 {[%clk 0:01:35.2]} 26. Bxd3 {[%clk 0:00:22.6]} 26... Qxd3
{[%clk 0:01:36.1]} 27. Qxd3 {[%clk 0:00:08.3]} 27... Rxd3 {[%clk 0:01:37]} 28.
Rxh6 {[%clk 0:00:06.3]} 28... Bxe4 {[%clk 0:01:37]} 29. Re1 {[%clk 0:00:05.7]}
29... Bg6 {[%clk 0:01:36.1]} 30. Kf4 {[%clk 0:00:05.1]} 30... Rxa3 {[%clk
0:01:35.4]} 31. g4 {[%clk 0:00:05.2]} 31... b4 {[%clk 0:01:34.3]} 32. Reh1
{[%clk 0:00:04.1]} 32... Kg7 {[%clk 0:01:34.5]} 33. Re1 {[%clk 0:00:01.8]} 33...
b3 {[%clk 0:01:33.6]} 34. Re7 {[%clk 0:00:02.4]} 34... b2 {[%clk 0:01:32.8]} 35.
Rxg6+ {[%clk 0:00:03.1]} 35... Kxg6 {[%clk 0:01:33]} 36. Rb7 {[%clk 0:00:04]}
36... Ra4+ {[%clk 0:01:31.9]} 37. Kg3 {[%clk 0:00:04.4]} 37... Rxa5 {[%clk
0:01:31.9]} 38. Rxb2 {[%clk 0:00:03.5]} 38... Rxg5 {[%clk 0:01:31.6]} 39. f4
{[%clk 0:00:04.2]} 39... Rc5 {[%clk 0:01:31.2]} 40. Rb7 {[%clk 0:00:04.4]} 40...
a5 {[%clk 0:01:30.2]} 41. f5+ {[%clk 0:00:02.8]} 41... Kg5 {[%clk 0:01:29.7]}
42. Rxf7 {[%clk 0:00:03.1]} 42... Rc3+ {[%clk 0:01:30]} 43. Kf2 {[%clk
0:00:03.8]} 43... Kxg4 {[%clk 0:01:30.6]} 44. f6 {[%clk 0:00:04.4]} 44... Kf5
{[%clk 0:01:29.5]} 45. Rb7 {[%clk 0:00:02.6]} 45... Kxf6 {[%clk 0:01:29.6]} 0-1

[Event "Early-Titled-Tuesday-Blitz-January-16-2024"]
[Site "Chess.com"]
[Date "2024.01.16"]
[Round "6"]
[White "cthulhuuu"]
[Black "lilylg"]
[Result "1-0"]
[WhiteElo "2398"]
[BlackElo "2089"]
[TimeControl "180+1"]
[EndTime "9:09:37 PST"]
[Termination "cthulhuuu won by checkmate"]

1. e4 {[%clk 0:02:59.8]} 1... c6 {[%clk 0:02:59.7]} 2. d3 {[%clk 0:02:59.7]}
2... d5 {[%clk 0:03:00.3]} 3. Nd2 {[%clk 0:02:59.9]} 3... e6 {[%clk 0:02:50.3]}
4. Ngf3 {[%clk 0:02:59.7]} 4... Nf6 {[%clk 0:02:50]} 5. g3 {[%clk 0:02:59.9]}
5... Be7 {[%clk 0:02:49]} 6. Bg2 {[%clk 0:03:00.2]} 6... O-O {[%clk 0:02:49.1]}
7. e5 {[%clk 0:03:00.1]} 7... Nfd7 {[%clk 0:02:49]} 8. O-O {[%clk 0:03:01]} 8...
c5 {[%clk 0:02:49.2]} 9. Re1 {[%clk 0:03:01.3]} 9... Nc6 {[%clk 0:02:49.5]} 10.
Nf1 {[%clk 0:03:01.7]} 10... b6 {[%clk 0:02:47.9]} 11. h4 {[%clk 0:03:00.9]}
11... Bb7 {[%clk 0:02:47.9]} 12. c3 {[%clk 0:02:59.9]} 12... Qc7 {[%clk
0:02:42.1]} 13. Bf4 {[%clk 0:02:59.9]} 13... Rad8 {[%clk 0:02:08.8]} 14. Ne3
{[%clk 0:02:59.7]} 14... Rfe8 {[%clk 0:01:59.6]} 15. h5 {[%clk 0:02:55.5]} 15...
Nf8 {[%clk 0:01:58.4]} 16. Ng4 {[%clk 0:02:53.9]} 16... d4 {[%clk 0:01:53.6]}
17. c4 {[%clk 0:02:54]} 17... Rd7 {[%clk 0:01:02.9]} 18. Qd2 {[%clk 0:02:52.8]}
18... Qd8 {[%clk 0:00:58.7]} 19. Bh6 {[%clk 0:02:41.7]} 19... g6 {[%clk
0:00:33]} 20. Qf4 {[%clk 0:02:16.4]} 20... Nb4 {[%clk 0:00:17.9]} 21. Bxf8
{[%clk 0:01:55.8]} 21... Rxf8 {[%clk 0:00:17.8]} 22. Rad1 {[%clk 0:01:44.6]}
22... Bxf3 {[%clk 0:00:16.8]} 23. Bxf3 {[%clk 0:01:44.5]} 23... Bg5 {[%clk
0:00:16.8]} 24. Nf6+ {[%clk 0:01:42.4]} 24... Bxf6 {[%clk 0:00:15.5]} 25. exf6
{[%clk 0:01:42.6]} 25... Re8 {[%clk 0:00:14.4]} 26. a3 {[%clk 0:01:38]} 26...
Na6 {[%clk 0:00:11.9]} 27. Bc6 {[%clk 0:01:37.9]} 27... Nb8 {[%clk 0:00:10.6]}
28. Ba4 {[%clk 0:01:29.3]} 28... Rb7 {[%clk 0:00:04.4]} 29. Bxe8 {[%clk
0:01:28.3]} 29... Qxe8 {[%clk 0:00:05.3]} 30. Kg2 {[%clk 0:01:23.6]} 30... Nd7
{[%clk 0:00:05.4]} 31. hxg6 {[%clk 0:01:23.3]} 31... hxg6 {[%clk 0:00:03.6]} 32.
Rh1 {[%clk 0:01:22.1]} 32... Qd8 {[%clk 0:00:02.5]} 33. Rh8+ {[%clk 0:01:15.9]}
33... Kxh8 {[%clk 0:00:02.5]} 34. Qh6+ {[%clk 0:01:16]} 34... Kg8 {[%clk
0:00:03.1]} 35. Qg7# {[%clk 0:01:15.7]} 1-0

[Event "Early-Titled-Tuesday-Blitz-January-16-2024"]
[Site "Chess.com"]
[Date "2024.01.16"]
[Round "6"]
[White "KnightmareJoker"]
[Black "MANOJ_MISHRA123"]
[Result "1-0"]
[WhiteElo "2106"]
[BlackElo "2244"]
[TimeControl "180+1"]
[EndTime "9:09:38 PST"]
[Termination "KnightmareJoker won on time"]

1. e4 {[%clk 0:03:00.9]} 1... c5 {[%clk 0:02:56.5]} 2. Nf3 {[%clk 0:03:01.3]}
2... d6 {[%clk 0:02:56.3]} 3. d4 {[%clk 0:03:01.5]} 3... cxd4 {[%clk 0:02:57.2]}
4. Nxd4 {[%clk 0:03:02.4]} 4... Nf6 {[%clk 0:02:57.9]} 5. Nc3 {[%clk 0:03:03]}
5... a6 {[%clk 0:02:58]} 6. Be2 {[%clk 0:03:02.2]} 6... Nbd7 {[%clk 0:02:53.6]}
7. Be3 {[%clk 0:03:01.3]} 7... e6 {[%clk 0:02:53.3]} 8. O-O {[%clk 0:03:01.3]}
8... Be7 {[%clk 0:02:53]} 9. f4 {[%clk 0:02:53.1]} 9... Qc7 {[%clk 0:02:52.8]}
10. Bf3 {[%clk 0:02:49.8]} 10... O-O {[%clk 0:02:40.6]} 11. g4 {[%clk
0:02:49.8]} 11... e5 {[%clk 0:02:10.8]} 12. Nf5 {[%clk 0:02:46.7]} 12... Nc5
{[%clk 0:02:08.7]} 13. g5 {[%clk 0:02:23.2]} 13... Nfxe4 {[%clk 0:01:50.9]} 14.
Nxe7+ {[%clk 0:02:18.4]} 14... Qxe7 {[%clk 0:01:50]} 15. Nxe4 {[%clk 0:02:16.9]}
15... Nxe4 {[%clk 0:01:49.2]} 16. Bxe4 {[%clk 0:02:13.5]} 16... exf4 {[%clk
0:01:49.2]} 17. Rxf4 {[%clk 0:01:39.3]} 17... Qxg5+ {[%clk 0:01:48.1]} 18. Kh1
{[%clk 0:01:35.9]} 18... Qe5 {[%clk 0:01:21.3]} 19. Qf3 {[%clk 0:01:19.9]} 19...
f5 {[%clk 0:01:09.4]} 20. Bd4 {[%clk 0:01:00.8]} 20... Qxe4 {[%clk 0:00:28.5]}
21. Rxe4 {[%clk 0:00:59.3]} 21... fxe4 {[%clk 0:00:28.6]} 22. Qxe4 {[%clk
0:00:58.7]} 22... Bf5 {[%clk 0:00:23.6]} 23. Qxb7 {[%clk 0:00:53.4]} 1-0